Cogmind - Beta 14 @@@ ROGUE MODE // 2025.03.31 @ 14:32:05 Player: IA-Sg3M Result: Destroyed by L-41 Fighter with Axe Performance ------------- Evolutions (3) 1500 Regions Visited (11) 2200 Robots Destroyed (168) 840 Value Destroyed (7973) 7973 Prototype IDs (31) 620 Alien Tech Used (0) 0 Bonus (4001) 4001 TOTAL SCORE: 17134 Bonus ------- High Alert Combat Kills 1722 Follower Combat Kills 1062 Entered Garrisons 600 Used RIF Installer 1500 Aligned with FarCom 300 Friendly Fire -1183 Cogmind --------- Core Integrity 0/700 Matter 258/300 Energy 79/220 System Corruption 3% Temperature Warm (150) Movement Core (2550) Ox50 Location -7/Factory Parts ------- > --- POWER (2) -------- Light Nuclear Core Light Nuclear Core > --- PROPULSION (4) --- (None) > --- UTILITY (5) ------ Coolant Injector Cargo Storage Unit Relay Coupler [Hunter] (13) > --- WEAPON (2) ------- (None) > --- INVENTORY (30) --- Light Nuclear Core Improved Heavy Treads Armored Huge Wheel Armored Huge Wheel Armored Huge Wheel Armored Huge Wheel Improved Heat Sink Large Storage Unit Improved Signal Interpreter Particle Charger Particle Charger Particle Charger Hardened Heavy Armor Plating Relay Coupler [NC] (42) Relay Coupler [Swarmer] (58) Variable Charge Gun Peak State ------------ > --- POWER ------------ Micro Nuclear Core Micro Nuclear Core > --- PROPULSION ------- Improved Heavy Treads Improved Heavy Treads > --- UTILITY ---------- Large Storage Unit Layered Medium Armor Plating Layered Medium Armor Plating Hacking Suite Relay Coupler [Sentry] > --- WEAPON ----------- Disruptor Cannon Disruptor Cannon > --- INVENTORY -------- Coolant Injector Coolant Injector Layered Medium Armor Plating Medium Reflective Plating Point Defense System Relay Coupler [NC] Relay Coupler [Swarmer] Relay Coupler [Hunter] Relay Coupler [Heavy] Variable Charge Gun Variable Charge Gun Remote Datajack Remote Datajack Lance [Rating: 72] Favorites ----------- Power Micro Nuclear Core Engine Ion Engine Power Core Micro Nuclear Core Propulsion Light Treads Treads Light Treads Leg Aluminum Leg Wheel Wheel Hover Unit Aerolev Unit Flight Unit Cooled VTOL Module Utility Medium Storage Unit Device Coolant Injector Storage Medium Storage Unit Hackware Hacking Suite Protection Layered Medium Armor Plating Weapon Mini Grenade Launcher Energy Gun Arc Projector Energy Cannon Long-range Proton Cannon Ballistic Gun Assault Rifle Ballistic Cannon Gauss Cannon Launcher Mini Grenade Launcher Special Weapon Remote Datajack Piercing Weapon Spear Special Melee Weapon Improved Datajack Build | -11 -10 -10 -10 -9 -8 -8 -8 -8 -7 -7 -7 ------- Run | Yrd Mat Min Exi Min Mat Gar Mat Gar Fac Gar Fac Slots Evolved 6 | . . . . . 4 . . . 2 . . Power 1 | . . . . . . . . . 1 . . Propulsion 2 | . . . . . 2 . . . . . . Utility 3 | . . . . . 2 . . . 1 . . Weapon . | . . . . . . . . . . . . Parts Attached 218 | 7 8 1 2 3 32 19 30 9 16 45 46 Power 18 | 1 . 1 . . 2 2 1 1 2 6 2 Engine 8 | 1 . 1 . . 1 1 1 . . 3 . Core 10 | . . . . . 1 1 . 1 2 3 2 Reactor . | . . . . . . . . . . . . Propulsion 54 | 2 3 . . . 11 2 7 2 4 17 6 Treads 15 | . 2 . . . 5 . . 1 . 6 1 Leg 7 | 2 1 . . . . . . . . . 4 Wheel 2 | . . . . . 1 . . . . . 1 Hover 29 | . . . . . 5 2 7 1 3 11 . Flight 1 | . . . . . . . . . 1 . . Utility 52 | 2 1 . . 1 6 3 7 1 7 9 15 Device 18 | 1 . . . 1 4 . 2 1 3 4 2 Storage 4 | 1 1 . . . . . . . 1 . 1 Processor . | . . . . . . . . . . . . Hackware 13 | . . . . . . 1 3 . 3 2 4 Protection 17 | . . . . . 2 2 2 . . 3 8 Artifact . | . . . . . . . . . . . . Weapon 94 | 2 4 . 2 2 13 12 15 5 3 13 23 Energy Gun 4 | . . . . . . . . . . 1 3 Energy Cannon 44 | . 2 . 1 . 8 7 6 5 1 3 11 Ballistic Gun 7 | 2 1 . . . 1 . . . . . 3 Ballistic Cannon 5 | . . . . . . . . . 1 4 . Launcher 18 | . 1 . . 2 4 5 6 . . . . Special Weapon 10 | . . . 1 . . . . . 1 2 6 Impact Weapon . | . . . . . . . . . . . . Slashing Weapon . | . . . . . . . . . . . . Piercing Weapon 3 | . . . . . . . . . . 3 . Special Melee Weapon 3 | . . . . . . . 3 . . . . Unidentified Prototypes 6 | . . . . . 2 . . . 3 1 . Parts Lost 37 | . . . . 3 1 1 2 5 2 4 19 Power 3 | . . . . 1 . . . . . . 2 Propulsion 14 | . . . . 1 . 1 1 2 1 2 6 Utility 12 | . . . . 1 1 . . 3 1 2 4 Weapon 8 | . . . . . . . 1 . . . 7 Highest Loss Streak 12 | . . . . 1 1 1 2 2 2 2 12 To Critical Strikes . | . . . . . . . . . . . . Average Slot Usage (%) 88 | . 99 100 88 90 84 99 94 80 83 92 77 Engine 5 | . 14 14 14 8 3 1 4 5 4 4 . Core 6 | . . . . . 4 7 4 3 6 9 13 Treads 9 | . 7 28 28 25 15 . . 5 . 4 8 Leg 3 | . 20 . . . . . . . . . 10 Hover 14 | . . . . . 15 35 33 24 19 19 . Device 9 | . 14 14 14 13 15 9 4 4 18 12 3 Storage 8 | . 14 14 14 14 9 9 9 3 1 7 7 Hackware 7 | . . . . . . 8 11 9 13 13 10 Protection 5 | . . . . . 4 9 8 8 . 2 9 Energy Cannon 7 | . 13 14 8 3 8 11 8 14 4 1 6 Ballistic Gun 1 | . 14 14 . . . . . . . . . Launcher 2 | . . . . 21 4 6 2 . . . . Special Weapon 1 | . . . 7 3 . . . . 6 2 2 Peak Build Rating 72 | 7 9 8 17 17 34 49 50 45 53 70 72 Average Rating 37 | 5 7 8 12 12 27 40 44 39 45 58 53 On Entrance 24 | . 7 8 8 17 10 32 45 35 15 49 70 Naked Turns . | . . . . . . . . . . . . Heaviest Build 180 | 14 21 21 28 28 35 38 40 41 38 67 180 Greatest Support 162 | 20 40 40 40 40 80 41 41 22 45 162 150 Greatest Overweight (x) 57 | . 2 . . . 10 9 13 1 1 14 57 Average Overweight (x) . | . . . . . . . . . . . 2 Largest Inventory Capacity 30 | 8 10 10 10 10 10 10 10 10 15 15 30 Average Capacity 13 | 6 9 10 10 10 10 10 10 7 7 15 25 Most Carried 30 | 7 10 10 10 10 10 10 10 10 12 15 30 Average Carried 11 | 3 9 9 9 10 9 9 9 6 5 14 15 Final Capacity 30 | 8 10 10 10 10 10 10 10 5 15 15 30 Final Carried 22 | 7 10 10 10 10 10 10 10 5 12 15 22 Class Distribution -------------------- 59% | Mutant 25% | Bothacker-Mutant 9% | Hauler-Mutant 6% | Scavenger-Mutant Dominant Class ---------------- Mutant | -10/Materials Mutant | -10/Mines Mutant | -10/Exiles Mutant | -9/Mines Scavenger-Mutant | -8/Materials Mutant | -8/Garrison Mutant | -8/Materials Mutant | -8/Garrison Mutant | -7/Factory Bothacker-Mutant | -7/Garrison Bothacker-Mutant | -7/Factory Resources | -11 -10 -10 -10 -9 -8 -8 -8 -8 -7 -7 -7 ----------- Run | Yrd Mat Min Exi Min Mat Gar Mat Gar Fac Gar Fac Matter Collected 4490 | 290 249 255 . 342 801 356 416 137 118 987 539 Remotely . | . . . . . . . . . . . . Salvage Created 6387 | 112 400 148 . 183 1170 838 613 555 159 1107 1102 Parts 340 | 7 31 5 . 12 56 55 42 24 11 39 58 Haulers Intercepted 12 | . 1 . . . 5 . 4 . 2 . . Recyclers Shooed 5 | . 1 2 . . 1 . . . . . 1 Parts Field Recycled . | . . . . . . . . . . . . Retrieved Matter . | . . . . . . . . . . . . Parts Self-Destructed . | . . . . . . . . . . . . Prevented . | . . . . . . . . . . . . Kills | -11 -10 -10 -10 -9 -8 -8 -8 -8 -7 -7 -7 ------- Run | Yrd Mat Min Exi Min Mat Gar Mat Gar Fac Gar Fac Combat Hostiles Destroyed 141 | . 11 . . 25 23 28 7 13 . 15 19 Melee 3 | . . . . . . . . . . 3 . Guns 5 | . 3 . . . . . . . . . 2 Cannons 66 | . 3 . . . 11 11 4 11 . 12 14 AOE 66 | . 5 . . 25 12 17 3 1 . . 3 Classes Destroyed 18 | 2 5 . . 2 3 2 . 1 1 1 1 Worker 6 | . 1 1 . 1 . . 2 . . . 1 Builder 4 | . . . . . 3 . . . . . 1 Tunneler 3 | 1 . . . 1 . . 1 . . . . Hauler 12 | . 1 . . . 5 . 4 . 2 . . Recycler 9 | 1 1 1 . 1 2 . . . . . 3 Operator 1 | . . . . . . . . . 1 . . Watcher 8 | . 2 . . . 2 . 3 . 1 . . Swarmer 34 | . 6 . . 4 7 11 3 3 . . . Cutter 5 | . . . . . . 2 . . . . 3 Grunt 47 | . 5 . . 2 10 6 1 6 . 8 9 Brawler 1 | . . . . . . . . . . 1 . Duelist 6 | . . . . 1 . . . . . 1 4 Protector 1 | . . . . . . . . . . . 1 Sentry 15 | . . . . . 4 4 4 3 . . . Specialist 4 | . . . . . . 4 . . . . . Hunter 5 | . . . . . 2 1 . . . 2 . Programmer 6 | . . . . . . . . 1 . 3 2 Assembled 18 | . . . . 18 . . . . . . . Best Kill Streak 19 | 2 8 1 . 19 8 8 3 3 2 8 4 Combat Bots Only 18 | . 6 . . 18 7 8 3 3 . 8 4 Max Kills in Single Turn 4 | 1 2 1 . 4 4 4 3 1 1 2 2 Gunslinging . | . . . . . . . . . . . . Exploded 4 | . 2 . . 4 4 4 3 1 . . 2 Melee 1 | . . . . . . . . . . 1 . Uniques/NPCs Destroyed 1 | . . 1 . . . . . . . . . YI-UF0 (-10/Mines) Combat | -11 -10 -10 -10 -9 -8 -8 -8 -8 -7 -7 -7 -------- Run | Yrd Mat Min Exi Min Mat Gar Mat Gar Fac Gar Fac Hostile Shots Fired 710 | . 24 . . 24 64 32 56 97 36 129 248 Missed 212 | . 10 . . 8 17 16 19 32 20 29 61 Damage Taken 8609 | . 284 . . 486 630 284 642 703 125 1356 4099 Core 1147 | . 38 . . 114 85 34 100 73 17 114 572 Absorbed by Shields 525 | . . . . 41 189 . . . . 295 . Reduced by Siege Mode 84 | . . . . . . . . . . 80 4 Redirected to Shielding 49 | . . . . . 49 . . . . . . Ignored by Resistances 13 | . . . . . . . . . . . 13 Regen/Repaired (Parts) 817 | . . . . . 126 . 233 . . . 458 Core Remaining (%) 61 | 100 . . . 39 . . . 46 . . . Volleys Fired 528 | 5 30 14 . 19 71 63 55 82 21 56 112 Largest 2 | 2 2 2 . 2 2 2 2 2 1 2 2 Hottest 225 | 40 80 80 . 120 120 162 162 179 90 225 225 Shots Fired 670 | 10 52 29 . 39 76 71 56 86 21 91 139 Gun 102 | 10 22 15 . . . . . . . 4 51 Cannon 461 | . 22 14 . 1 62 54 50 86 11 86 75 Launcher 83 | . 8 . . 38 14 17 6 . . . . Special 24 | . . . . . . . . . 10 1 13 Kinetic 131 | 10 22 15 . . . . . . 1 71 12 Thermal 310 | . 22 14 . 1 60 44 35 61 10 7 56 Explosive 83 | . 8 . . 38 14 17 6 . . . . Electromagnetic 122 | . . . . . 2 10 15 25 . 12 58 Robot Hit Streak 23 | 3 5 6 . 5 22 10 8 9 6 23 12 Robot Miss Streak 5 | 2 4 5 . 2 2 2 4 3 3 3 5 Penetration Max 1 | . . . . . . . . . . 1 . Secondary Targets 1 | . . . . . . . . . . . 1 Max Gunslinging Chain 1 | . . . . . . . . . . . 1 Shots Hit Robots 366 | 6 27 17 . 7 29 12 49 28 14 91 86 Core Hits 281 | 4 23 5 . 58 45 39 15 12 3 33 44 Critical Kills 3 | . 1 . . . . . 1 1 . . . Critical Parts Destroyed . | . . . . . . . . . . . . Critical Strikes 17 | . 1 . . . . . 1 3 . 12 . Meltdown 2 | . . . . . . . 1 1 . . . Destroy 1 | . 1 . . . . . . . . . . Blast 8 | . . . . . . . . . . 8 . Corrupt 3 | . . . . . . . . 2 . 1 . Impale 3 | . . . . . . . . . . 3 . Melee Attacks 81 | . . . . . . . 23 . . 58 . Impact . | . . . . . . . . . . . . Slashing . | . . . . . . . . . . . . Piercing 58 | . . . . . . . . . . 58 . Sneak Attacks 13 | . . . . . . . 13 . . . . Combat Hostiles . | . . . . . . . . . . . . Follow-up Attacks 3 | . . . . . . . . . . 3 . Damage Inflicted 16559 | 56 998 268 . 1814 3260 2197 1356 1031 349 3055 2175 Guns 853 | 56 171 120 . . . . . . . . 506 Cannons 8194 | . 193 140 . . 1818 1063 1056 989 349 1394 1192 Explosions 5636 | . 616 . . 1814 1439 1134 222 42 . . 369 Melee 1661 | . . . . . . . . . . 1661 . Ramming 215 | . 18 8 . . 3 . 78 . . . 108 Kinetic 1682 | 56 171 120 . . . . . . 29 1098 208 Thermal 6504 | . 193 140 . . 2046 966 792 562 320 162 1323 Explosive 4997 | . 616 . . 1814 1211 1134 222 . . . . Electromagnetic 1500 | . . . . . . 97 264 469 . 134 536 Impact . | . . . . . . . . . . . . Slashing . | . . . . . . . . . . . . Piercing 1661 | . . . . . . . . . . 1661 . Highest Corruption 6 | . 2 2 2 6 . . 2 2 . 2 3 Average Corruption 2 | . 1 2 2 4 . . 2 2 . 1 2 Corruption Purged . | . . . . . . . . . . . . Corruption Blocked . | . . . . . . . . . . . . Effects 133 | . 3 7 10 22 . . 15 24 . 13 39 Message Errors 27 | . . 2 2 6 . . 2 7 . 1 7 Matter Fused 39 | . . 2 1 4 . . 6 9 . 6 11 Heat Flow Errors 16 | . . 1 3 4 . . 1 2 . 1 4 Energy Discharges 13 | . 1 . 3 1 . . 2 2 . . 4 Parts Rejected 2 | . 1 . . . . . . . . . 1 Parts Fused 1 | . . . . 1 . . . . . . . Data Loss (minor) 19 | . . 1 1 2 . . 3 2 . 4 6 Data Loss (major) 4 | . 1 . . . . . . . . . 3 Misfires 10 | . . 1 . 3 . . . 2 . 1 3 Alerts 1 | . . . . . . . 1 . . . . Weapon Failures 1 | . . . . 1 . . . . . . . Overload Shots 17 | . . . . . . . . . 10 5 2 Effects 1 | . . . . . . . . . . 1 . Heat Surge 1 | . . . . . . . . . . 1 . Overflow Damage 717 | . 38 . . 18 284 18 79 53 64 133 30 Projectiles 305 | . . . . . 104 18 59 28 64 15 17 Explosions 294 | . 38 . . 18 180 . 20 25 . . 13 Melee 118 | . . . . . . . . . . 118 . Knockbacks 8 | . . 1 . . . . 1 . 1 5 . Impact 2 | . . 1 . . . . 1 . . . . Kinetic 6 | . . . . . . . . . 1 5 . Secondary . | . . . . . . . . . . . . Self-Inflicted Damage 767 | . 135 . . 294 56 82 38 40 . . 122 Shots 24 | . 5 . . 12 2 2 . 1 . . 2 Rammed 18 | . 1 4 . . 1 . 6 . . . 6 Targets Rammed 24 | . 3 4 . . 1 . 6 . . . 10 Kicked 4 | . 2 . . . . . . . . . 2 Crushed 2 | . . . . . . . . . . . 2 Highest Temperature 515 | . 60 157 235 202 360 305 334 310 208 433 515 Average Temperature 106 | . 24 42 110 83 92 76 120 101 76 141 119 Received Heat Transfer 2086 | . 84 . . 4 78 27 180 198 42 324 1149 Effects 24 | . . . . . 3 . 3 . . 9 9 Shutdowns 11 | . . . . . . . 1 . . 5 5 Energy Bleed 4 | . . . . . 1 . . . . 1 2 Interference 7 | . . . . . 2 . 2 . . 3 . Matter Decay 1 | . . . . . . . . . . . 1 Short Circuit 1 | . . . . . . . . . . . 1 Siege Activations 5 | . . . . . . . . . . 3 2 Total Turns 99 | . . . . . . . . . . 73 26 Longest Duration 52 | . . . . . . . . . . 52 23 Robots Corrupted . | . . . . . . . . . . . . Combat Hostiles . | . . . . . . . . . . . . Parts Fried 5 | . . . . . . . 1 3 . . 1 Impact Corruptions 1 | . . . . . . . . . . . 1 Robots Melted 2 | . . . . . . . 1 1 . . . Combat Hostiles 1 | . . . . . . . . 1 . . . Parts Melted 28 | . . . . . 9 5 8 5 . . 1 Heat Transferred 11206 | . 407 296 . . 4230 2197 1200 800 300 150 1626 Parts Sabotaged . | . . . . . . . . . . . . Parts Stolen . | . . . . . . . . . . . . Parts Stripped . | . . . . . . . . . . . . Power Chain Reactions 4 | . . . . . . . . 1 . . 3 Alert | -11 -10 -10 -10 -9 -8 -8 -8 -8 -7 -7 -7 ------- Run | Yrd Mat Min Exi Min Mat Gar Mat Gar Fac Gar Fac Peak Influence 1734 | 10 243 104 . 222 594 1734 1262 1520 890 1673 1039 Initial 877 | . 6 94 . . 70 356 845 632 792 529 877 Average 734 | 3 108 69 . 115 341 1141 1008 1040 806 999 894 Maximum Alert Level 5 | . 1 . . 1 2 5 4 4 3 5 3 Low Security (%) 19 | 100 82 100 . 73 26 . . . . . . Level 1 6 | . 17 . . 26 30 . . . . . . Level 2 13 | . . . . . 43 12 . 22 6 32 1 Level 3 41 | . . . . . . 24 82 34 93 20 98 Level 4 17 | . . . . . . 53 17 43 . 44 . Level 5 1 | . . . . . . 9 . . . 2 . High Security . | . . . . . . . . . . . . Max Security . | . . . . . . . . . . . . Squads Dispatched 32 | . 3 . . . 5 . 6 . 3 . 15 Investigation 13 | . 3 . . . 2 . 3 . 2 . 3 Extermination 3 | . . . . . . . . . . . 3 Reinforcement 9 | . . . . . 3 . 2 . . . 4 Assault 5 | . . . . . . . 1 . 1 . 3 Garrison 2 | . . . . . . . . . . . 2 Intercept . | . . . . . . . . . . . . Searches Triggered . | . . . . . . . . . . . . Construction Impeded 1 | . . . . . . . . . . . 1 Haulers Reinforced . | . . . . . . . . . . . . Active Scanning Responses . | . . . . . . . . . . . . Cargo Convoy Interrupts 1 | . . . . . . . . . . . 1 Stealth | -11 -10 -10 -10 -9 -8 -8 -8 -8 -7 -7 -7 --------- Run | Yrd Mat Min Exi Min Mat Gar Mat Gar Fac Gar Fac Distress Signals 10 | . 1 . . . 3 . 3 . 2 . 1 Communications Jammed . | . . . . . . . . . . . . Distress Signals . | . . . . . . . . . . . . Times Spotted 264 | . 18 . . 26 30 22 48 27 7 24 62 Peak Tracking Total 16 | . 4 . . 16 7 6 8 10 5 6 8 Tactical Retreats 35 | . 2 . . . 2 1 10 9 1 3 7 Traps | -11 -10 -10 -10 -9 -8 -8 -8 -8 -7 -7 -7 ------- Run | Yrd Mat Min Exi Min Mat Gar Mat Gar Fac Gar Fac Traps Triggered 19 | . 2 . . . . 4 2 5 1 5 . Indirectly . | . . . . . . . . . . . . Trap Hack Attempts . | . . . . . . . . . . . . Triggered . | . . . . . . . . . . . . Disarmed . | . . . . . . . . . . . . Reprogrammed . | . . . . . . . . . . . . Reused . | . . . . . . . . . . . . Traps Extracted . | . . . . . . . . . . . . Installed . | . . . . . . . . . . . . Triggered 2 | . . . . . . . . . . . 2 Machines | -11 -10 -10 -10 -9 -8 -8 -8 -8 -7 -7 -7 ---------- Run | Yrd Mat Min Exi Min Mat Gar Mat Gar Fac Gar Fac Machines Disabled 42 | . . . . 7 2 17 . 7 . 5 4 Max in Single Turn 6 | . . . . 6 1 2 . 2 . 1 1 Garrison Access 2 | . . . . . . . . . . . 2 Garrison Relay 13 | . . . . . . 7 . 3 . 3 . Phase Generator 2 | . . . . . . 1 . 1 . . . Machines Repaired . | . . . . . . . . . . . . Machines Dismantled . | . . . . . . . . . . . . Machines Sabotaged . | . . . . . . . . . . . . Overloaded Fab Kills . | . . . . . . . . . . . . Hacking | -11 -10 -10 -10 -9 -8 -8 -8 -8 -7 -7 -7 --------- Run | Yrd Mat Min Exi Min Mat Gar Mat Gar Fac Gar Fac Machines Accessed 54 | . 6 . 2 . 7 4 13 1 9 2 10 Terminals 32 | . 4 . . . 3 4 10 1 2 2 6 Fabricators 3 | . . . . . . . . . 2 . 1 Repair Stations 6 | . . . . . 1 . 2 . 2 . 1 Recycling Units 5 | . 2 . . . 2 . . . 1 . . Scanalyzers 1 | . . . . . . . . . 1 . . Garrison Access 5 | . . . . . 1 . 1 . 1 . 2 Total Hacks 138 | . 18 . 2 . 19 12 40 2 18 2 25 Successful 75 | . 13 . 2 . 12 2 18 1 8 2 17 Failed 63 | . 5 . . . 7 10 22 1 10 . 8 Catastrophic 11 | . 1 . . . . . 5 1 2 . 2 Database Lockouts . | . . . . . . . . . . . . Manual 70 | . 11 . 1 . 7 . 31 . 8 . 12 Terminals 93 | . 14 . . . 7 12 33 2 6 2 17 Fabricators 7 | . . . . . . . . . 4 . 3 Repair Stations 19 | . . . . . 6 . 6 . 5 . 2 Recycling Units 9 | . 4 . . . 4 . . . 1 . . Scanalyzers 1 | . . . . . . . . . 1 . . Garrison Access 7 | . . . . . 2 . 1 . 1 . 3 Terminal Hacks 27 | . 8 . 2 . 2 2 5 1 . 2 5 Record 2 | . 1 . 1 . . . . . . . . Part Schematic 1 | . . . . . . . . . . . 1 Robot Analysis 1 | . . . . . . . 1 . . . . Prototype ID Bank 1 | . 1 . . . . . . . . . . Open Door 1 | . . . . . . 1 . . . . . Branch Access Points 1 | . . . . . . . . . . . 1 Emergency Access Points 1 | . . . . . . . . . . 1 . Terminal Index 1 | . 1 . . . . . . . . . . Scanalyzer Index 1 | . 1 . . . . . . . . . . Unreport Threat 5 | . 1 . . . . . 2 . . . 2 Hauler Manifests 3 | . 1 . . . 1 . . . . . 1 Zone Layout 5 | . 2 . . . 1 . 2 . . . . Patrol Navigation 2 | . . . . . . 1 . 1 . . . Security Stations 1 | . . . . . . . . . . 1 . Derelict Proto ID Bank 1 | . . . 1 . . . . . . . . Fabricator Hacks 3 | . . . . . . . . . . . 3 Network Status 1 | . . . . . . . . . . . 1 Load Schematic 1 | . . . . . . . . . . . 1 Build 1 | . . . . . . . . . . . 1 Repair Station Hacks 14 | . . . . . 5 . 6 . 1 . 2 Scan Component 7 | . . . . . 3 . 3 . . . 1 Repair 6 | . . . . . 2 . 3 . . . 1 Refit 1 | . . . . . . . . . 1 . . Recycling Unit Hacks 5 | . 2 . . . 2 . . . 1 . . Report Inventory 5 | . 2 . . . 2 . . . 1 . . Scanalyzer 1 | . . . . . . . . . 1 . . Insert Component 1 | . . . . . . . . . 1 . . Garrison Access Hacks 6 | . . . . . 1 . 1 . 1 . 3 Unlock Access 3 | . . . . . 1 . 1 . 1 . . Seal Access 2 | . . . . . . . . . . . 2 Coupler Status 1 | . . . . . . . . . . . 1 Unauthorized Hacks 19 | . 3 . . . 2 . 6 . 4 . 4 Terminals 15 | . 1 . . . 2 . 6 . 2 . 4 Track 1 | . . . . . 1 . . . . . . Assimilate 2 | . . . . . . . 2 . . . . Botnet 5 | . . . . . . . . . 1 . 4 Disrupt 3 | . . . . . . . 3 . . . . Operators 4 | . 1 . . . 1 . 1 . 1 . . Fabricators 2 | . . . . . . . . . 2 . . Liberate 2 | . . . . . . . . . 2 . . Repair Stations . | . . . . . . . . . . . . Recycling Units 2 | . 2 . . . . . . . . . . Tunnel 2 | . 2 . . . . . . . . . . Scanalyzers . | . . . . . . . . . . . . Garrison Access . | . . . . . . . . . . . . Data Cores Recovered . | . . . . . . . . . . . . Used . | . . . . . . . . . . . . Hacking Detections 39 | . 4 . . . 5 3 12 1 6 . 8 Full Trace Events 14 | . 2 . . . 2 2 3 1 2 . 2 Feedback Events . | . . . . . . . . . . . . Feedback Blocked . | . . . . . . . . . . . . Robot Schematics Acquired . | . . . . . . . . . . . . Robots Built . | . . . . . . . . . . . . Authchips . | . . . . . . . . . . . . Time . | . . . . . . . . . . . . Total Robot Build Rating . | . . . . . . . . . . . . Part Schematics Acquired 1 | . . . . . . . . . . . 1 Parts Built 1 | . . . . . . . . . . . 1 Authchips . | . . . . . . . . . . . . Time 25 | . . . . . . . . . . . 25 Total Part Build Rating 1 | . . . . . . . . . . . 1 Parts Repaired 6 | . . . . . 2 . 3 . . . 1 Time 274 | . . . . . 58 . 154 . . . 62 Parts Recycled . | . . . . . . . . . . . . Recycled Matter . | . . . . . . . . . . . . Retrieved Matter . | . . . . . . . . . . . . Retrieved Components . | . . . . . . . . . . . . Parts Scanalyzed . | . . . . . . . . . . . . Part Schematics Acquired . | . . . . . . . . . . . . Parts Damaged . | . . . . . . . . . . . . Bothacking | -11 -10 -10 -10 -9 -8 -8 -8 -8 -7 -7 -7 ------------ Run | Yrd Mat Min Exi Min Mat Gar Mat Gar Fac Gar Fac Used RIF Installer 3 | . . . . . . 2 . . . 1 . Signal Jammer 1 | . . . . . . 1 . . . . . Structural Interface 1 | . . . . . . . . . . 1 . Robots Hacked 28 | . . . . . . . 14 . 5 1 8 Non-combat 15 | . . . . . . . 9 . 3 . 3 Combat 13 | . . . . . . . 5 . 2 1 5 Robot Hacks Applied 36 | . . . . . . . 17 . 8 1 10 parse_system 5 | . . . . . . . 4 . . . 1 no_distress 12 | . . . . . . . 8 . 3 . 1 find_fabricator 2 | . . . . . . . . . 1 . 1 drop_inventory 2 | . . . . . . . . . 1 . 1 map_route 2 | . . . . . . . . . . . 2 scatter_targeting 1 | . . . . . . . 1 . . . . overwrite_iff 1 | . . . . . . . 1 . . . . formatsys_high 11 | . . . . . . . 3 . 3 1 4 Relay Couplers Released 51 | . . . . . . 26 . 15 . 10 . Machine Destruction 48 | . . . . . . 26 . 12 . 10 . Programmers 3 | . . . . . . . . 3 . . . Attached 11 | . . . . . . . 3 . 3 2 3 Fabnet Peak Effective % . | . . . . . . . . . . . . Robots Rewired 2 | . . . . . . . . . . 2 . Allies Hacked . | . . . . . . . . . . . . Hacks Repelled . | . . . . . . . . . . . . Allies | -11 -10 -10 -10 -9 -8 -8 -8 -8 -7 -7 -7 -------- Run | Yrd Mat Min Exi Min Mat Gar Mat Gar Fac Gar Fac Total Allies 19 | . . . . . . 2 5 . 3 5 4 Largest Group 3 | . . . . . . 2 1 . 3 3 3 Highest-Rated Group 150 | . . . . . . 56 16 . 90 150 148 Highest-Rated Ally 90 | . . . . . . 31 16 . 32 80 90 Total Orders 1 | . . . . . . . . . . . 1 AID 1 | . . . . . . . . . . . 1 Ally Attacks 138 | . . . . . . 13 11 . 7 40 67 Total Damage 4286 | . . . . . . 292 207 . 249 1283 2255 Kills 35 | . . . . . . 3 2 . 2 12 16 Allies Corrupted 1 | . . . . . . . . . . . 1 Allies Melted . | . . . . . . . . . . . . Intel | -11 -10 -10 -10 -9 -8 -8 -8 -8 -7 -7 -7 ------- Run | Yrd Mat Min Exi Min Mat Gar Mat Gar Fac Gar Fac Robot Analysis Total 1 | . . . . . . . 1 . . . . Derelict Logs Recovered 2 | . . 2 . . . . . . . . . Drone Launches . | . . . . . . . . . . . . Drone Recoveries . | . . . . . . . . . . . . Exploration | -11 -10 -10 -10 -9 -8 -8 -8 -8 -7 -7 -7 ------------- Run | Yrd Mat Min Exi Min Mat Gar Mat Gar Fac Gar Fac Turns Passed 12835 | 96 768 568 577 1047 1309 1011 1334 1261 489 1843 2532 Spaces Moved 8317 | 57 378 320 358 612 793 1213 1200 663 686 1186 851 Core 141 | 5 . . . . 18 6 1 34 73 2 2 Treads 2431 | . 112 320 358 612 169 . . . . 263 597 Legs 487 | 52 266 . . . . . . . . . 169 Wheels 147 | . . . . . 64 . . . . . 83 Hover 5111 | . . . . . 542 1207 1199 629 613 921 . Flight . | . . . . . . . . . . . . Fastest Speed 43 | 50 120 160 160 160 43 43 48 50 46 50 160 Average Speed 111 | 113 165 160 160 160 125 57 50 134 53 80 240 Slowest Speed 2900 | 120 260 160 160 160 550 500 700 146 110 750 2900 Overloaded Moves . | . . . . . . . . . . . . Propulsion Burnouts . | . . . . . . . . . . . . Robots Hopped . | . . . . . . . . . . . . Cave-ins Triggered 1 | . . . . . 1 . . . . . . Exploration Rate (%) 58 | 4 68 63 69 98 56 94 72 46 20 81 25 Regions Visited 11 Branch Regions 3 Pre-discovered Areas 4 | . 2 1 1 . . . . . . . . Known Exits Taken 3 | . . . . . 1 . 1 . 1 . . Unknown Exits Taken 5 | 1 1 1 1 1 . . . . . . . Scrap Searched 3 | . . 1 . 2 . . . . . . . Spaces Dug 48 | . . . . 7 33 . 2 4 . 2 . Terrain Destroyed 713 | . 45 . . 251 136 122 60 88 4 2 5 Melee 2 | . . . . . . . . . . 2 . Projectile 28 | . . . . 1 3 1 11 6 4 . 2 AOE 683 | . 45 . . 250 133 121 49 82 . . 3 Terrain Rammed . | . . . . . . . . . . . . Walls Destroyed . | . . . . . . . . . . . . Machines Disabled . | . . . . . . . . . . . . Actions | -11 -10 -10 -10 -9 -8 -8 -8 -8 -7 -7 -7 --------- Run | Yrd Mat Min Exi Min Mat Gar Mat Gar Fac Gar Fac Total 11109 | 75 469 347 363 643 1028 1459 1871 952 790 1919 1193 Wait 1518 | . 33 1 . 8 99 86 533 127 37 452 142 Move 8309 | 56 377 319 357 611 793 1212 1200 662 686 1185 851 Hop . | . . . . . . . . . . . . Pick Up 121 | 7 10 4 1 1 12 13 6 8 11 26 22 Fast Attach 87 | 7 1 . 1 1 15 4 13 4 11 15 15 Attach 45 | . . . 1 . 3 2 2 3 5 12 17 Detach 29 | . . . . . 2 1 2 1 3 11 9 Swap 86 | . 7 1 . 2 14 13 15 2 . 18 14 Drop 118 | . 8 4 3 1 18 16 16 11 3 37 1 Fire 528 | 5 30 14 . 19 71 63 55 82 21 56 112 Melee 77 | . . . . . . . 23 . . 54 . Ram 6 | . . . . . . . 6 . . . . Kick 4 | . 2 . . . . . . . . . 2 Crush 14 | . 1 4 . . 1 . . . . . 8 Escape Stasis 143 | . . . . . . 47 . 52 13 31 . Rewire 24 | . . . . . . 2 . . . 22 . Trap . | . . . . . . . . . . . . Miscellaneous . | . . . . . . . . . . . . Route ------- -11/Scrapyard -10/Materials (discovered 5 exits: [*Mat x3] / [*Min x2]) -10/Mines (discovered 2 exits: [*Mat] / *Exi) -10/Exiles -9/Mines (discovered 2 exits: *Mat x2) -8/Materials (discovered 2 exits: *Fac / Gar) -8/Garrison (discovered 3 exits: *Mat x3) -8/Materials (discovered 3 exits: *Fac x2 / Gar) -8/Garrison -7/Factory (discovered 4 exits: [*Fac] / *Low x2 / Gar) -7/Garrison (discovered 3 exits: *Fac x3) -7/Factory (discovered 3 exits: *Sto / Low x2) History --------- Turn | Location | Event 3 | -11/Scrapyard | Discovered new exit (range 15) 97 | -11/Scrapyard | Entered Materials 194 | -10/Materials | Discovered new exit (range 16) 312 | -10/Materials | Build established: Mutant 394 | -10/Materials | Discovered new exit (range 8) 564 | -10/Materials | Discovered new exit (range 13) 683 | -10/Materials | Discovered new exit (range 12) 709 | -10/Materials | Discovered new exit (range 7) 865 | -10/Materials | Entered Mines 998 | -10/Mines | YI-UF0 nonchalantly dropped a Grenade Launcher on the ground 1019 | -10/Mines | Murdered YI-UF0 1200 | -10/Mines | Learned Materials machine intel 1361 | -10/Mines | Learned Materials stockpile data 1374 | -10/Mines | Learned location of Storage (-7) 1380 | -10/Mines | A weapon hastily lodged in a ceiling crevice suddenly fell to the ground 1406 | -10/Mines | Discovered new exit (range 5) 1425 | -10/Mines | Deemed a non-threat by the Exiles lab entrance 1426 | -10/Mines | Discovered new exit (range 5) 1433 | -10/Mines | Entered Exiles 1478 | -10/Exiles | Met 8R-AWN 1500 | -10/Exiles | Met EX-HEX 1545 | -10/Exiles | Met EX-BIN 1625 | -10/Exiles | Aligned with FarCom system 1626 | -10/Exiles | Given EX-Vault access code 1668 | -10/Exiles | Opened EX-Vault 1678 | -10/Exiles | Found Gui. Plasma Cannon 1712 | -10/Exiles | Warned to stay clear of 0b10 Research branches 1760 | -10/Exiles | Met EX-DEC 1946 | -10/Exiles | Learned location of Zion (-7) 1994 | -10/Exiles | Discovered new exit (range 12) 2010 | -10/Exiles | Left Exiles lab with Gui. Plasma Cannon 2010 | -10/Exiles | Entered Mines 2257 | -9/Mines | Assembled infested the area 2310 | -9/Mines | Destroyed 18 combat bots 2867 | -9/Mines | Core integrity fell below 50% 2991 | -9/Mines | Discovered new exit (range 5) 3043 | -9/Mines | Discovered new exit (range 10) 3057 | -9/Mines | Entered Materials 3057 | -8/Materials | Evolved 4 slots: Propulsion x2, Utility x2 3059 | -8/Materials | Loaded intel: 49 machine locations 3119 | -8/Materials | Repaired Shield Generator 3146 | -8/Materials | Repaired Lgt. Treads 3408 | -8/Materials | Crushed by falling debris 3423 | -8/Materials | Destroyed 7 combat bots 3744 | -8/Materials | Build established: Scavenger-Mutant 3835 | -8/Materials | Discovered new exit (range 15) 4366 | -8/Materials | Identified exit to Garrison 4366 | -8/Materials | Entered Garrison 4384 | -8/Garrison | Triggered checkpoint 4442 | -8/Garrison | Garrison Relay disabled 4470 | -8/Garrison | Triggered checkpoint 4502 | -8/Garrison | Triggered checkpoint 4523 | -8/Garrison | Build established: Mutant 4584 | -8/Garrison | Phase Generator disabled 4626 | -8/Garrison | Rescued a captive Derelict 4633 | -8/Garrison | Rescued a captive Derelict 4674 | -8/Garrison | Gui. Plasma Cannon suddenly broke down 4742 | -8/Garrison | Triggered checkpoint 4794 | -8/Garrison | Destroyed 8 combat bots 4841 | -8/Garrison | Discovered new exit (range 14) 4859 | -8/Garrison | Installed Relay Interface Framework 4901 | -8/Garrison | Triggered checkpoint 4911 | -8/Garrison | Expanded RIF knowledge: Signal Jamming 4932 | -8/Garrison | Garrison Relay disabled 4988 | -8/Garrison | Triggered checkpoint 5058 | -8/Garrison | Garrison Relay disabled 5090 | -8/Garrison | Discovered new exit (range 9) 5156 | -8/Garrison | Triggered checkpoint 5195 | -8/Garrison | Discovered new exit (range 10) 5282 | -8/Garrison | Garrison Relay disabled 5286 | -8/Garrison | Garrison Relay disabled 5286 | -8/Garrison | Garrison Relay disabled 5292 | -8/Garrison | Garrison Relay disabled 5377 | -8/Garrison | Entered Materials 5445 | -8/Materials | Repaired Aerolev Unit 5690 | -8/Materials | Discovered new exit (range 10) 5857 | -8/Materials | Build established: Bothacker-Mutant 6328 | -8/Materials | Repaired Antigrav System 6368 | -8/Materials | Repaired Imp. Light Armor Plating 6368 | -8/Materials | Build established: Mutant 6577 | -8/Materials | First assault squad dispatched 6708 | -8/Materials | Discovered new exit (range 10) 6711 | -8/Materials | Identified exit to Garrison 6711 | -8/Materials | Entered Garrison 7014 | -8/Garrison | Garrison Relay disabled 7070 | -8/Garrison | Triggered checkpoint 7093 | -8/Garrison | Core integrity fell below 50% 7167 | -8/Garrison | Garrison Relay disabled 7243 | -8/Garrison | Triggered checkpoint 7313 | -8/Garrison | Discovered new exit (range 13) 7373 | -8/Garrison | Phase Generator disabled 7463 | -8/Garrison | Garrison Relay disabled 7475 | -8/Garrison | Triggered checkpoint 7972 | -8/Garrison | Entered Factory 7972 | -7/Factory | Evolved 2 slots: Power x1, Utility x1 8065 | -7/Factory | Discovered new exit (range 14) 8160 | -7/Factory | Discovered new exit (range 13) 8372 | -7/Factory | First assault squad dispatched 8407 | -7/Factory | Discovered new exit (range 12) 8461 | -7/Factory | Identified exit to Garrison 8461 | -7/Factory | Entered Garrison 8579 | -7/Garrison | Triggered checkpoint 9027 | -7/Garrison | Triggered checkpoint 9070 | -7/Garrison | Garrison Relay disabled 9083 | -7/Garrison | Triggered checkpoint 9088 | -7/Garrison | Learned Factory security intel 9114 | -7/Garrison | Discovered new exit (range 10) 9181 | -7/Garrison | Garrison Relay disabled 9369 | -7/Garrison | Destroyed 8 combat bots 9406 | -7/Garrison | Build established: Bothacker-Mutant 9431 | -7/Garrison | Discovered new exit (range 11) 9436 | -7/Garrison | Expanded RIF knowledge: Structural Interface 9677 | -7/Garrison | Triggered checkpoint 9817 | -7/Garrison | Triggered checkpoint 9842 | -7/Garrison | Found embedded Infiltrators 9858 | -7/Garrison | Spotted B-75 Beast 9879 | -7/Garrison | Allies destroyed B-75 Beast 10088 | -7/Garrison | Discovered new exit (range 10) 10227 | -7/Garrison | Triggered checkpoint 10227 | -7/Garrison | Garrison Relay disabled 10304 | -7/Garrison | Entered Factory 10304 | -7/Factory | Accompanied by 2 allies 10705 | -7/Factory | Discovered new exit (range 12) 10731 | -7/Factory | Garrison activated, responded to threat 11072 | -7/Factory | Fabricated Cargo Storage Unit (x1) 11144 | -7/Factory | First assault squad dispatched 11179 | -7/Factory | Cargo convoy interrupted 11234 | -7/Factory | Repaired Imp. Heavy Treads 11634 | -7/Factory | Core integrity fell below 50% 11690 | -7/Factory | Lost 3 parts (1n2u) 11921 | -7/Factory | Build established: Hauler-Mutant 11975 | -7/Factory | Identified exit to Storage 11975 | -7/Factory | Identified exit to Lower Caves 12812 | -7/Factory | Core integrity fell below 20% 12836 | -7/Factory | Destroyed by L-41 Fighter with Axe Last Messages --------------- 12824_ R-06 Scavenger collects Axe. 12826_ K-01 Serf collects debris. 12826_ Slug penetrates K-01 Serf. 12826_ Ion Cannon destroyed. 12827_ R-06 Scavenger collects Carbon-fiber Leg. 12828_ Jacked H-55 Commando... >>formatsys_high Rerouting network defenses. Erasing system data. Installing primary routines, ETC: 6. 12829_ Remote Datajack severed. 12829_ Imp. Carbon-fiber Leg destroyed. 12830_ Chain reaction triggered in Unknown Engine. 12830_ R-06 Scavenger destroyed. 12831_ R-06 Scavenger collects Sml. Storage Unit. 12831_ K-01 Serf collects debris. 12834_ Door malfunctions. 12834_ Commando 4a reactivates. 12835_ K-01 Serf collects debris. 12836_ Disruptor Cannon destroyed. Map ----- +----------------------------------------------------+ | ????????????????????????????# # #????? | | ????????????????????????????#T # ??#????? | | ????????????????????????????## # ????#????? | | ?????????????????????????????# # """"? #????? | | ?????????????????????????????# # """"" #????? | | ?????????????????????????????# # #????? | | ????????????????????????????# ##+########???? | | ????????????????????????????# ????? | | ????????????????????????????# ????? | | ????????????????????????????# ????? | | ???????????????????????? ??# ###########???? | | ???????????????????????? ??# #?????????????? | | ???????????????????????? ??# #] ?????????? | | #??????????????????????? ??# # ??????????? | | #????????????????????""" ??# # "?? ??????? | | #????????????????????""" ??# # """ ??????? | | #????????????????????""" ??# # ?????? | | #???????????????????? % ??# # """ ??????? | | #???????????##########+#/#??# # """ ??????? | | #???????????# #??# # """ ??????? | | #???????????# #??#w # ????? | | #???????????# #### + ????? | | %#???????????# g r # * ????? | | #???????????# ^ m/ ###########???? | | #???????????# """ !k[l """ ##########????? | | #####???????# """ r@! """ # ?????? | | #???????# """ k """ # ?????? | | #???????# u k # ?????? | | #???????# h + ?????? | | #???????+ ######## # ?????? | | #???????# #??????# # ?????? | | #???????# #??????# # ?????? | | ######### #???####+####+############????? | | ^ #???# = ##???????? | | ^ #???# """ ==] #???????? | | % ^ #???# """ =]] ##???????? | | ^ #???# """ =]= #????????? | | =% #???# #????????? | | ###+############### """ #????????? | | # # """ #????##### | | # """"""" """"""" + """ #????# | | # """"""" """"""" # """T""" #????# | | # """"""" """"""" ###########/######????? | | # """"""" """"""" #??# #?????? ] | | # #??# """ """ #??????# / | | #= #??# """ """ #??????#^ | | ################+##### """ """ #??????# | | # #???#### % | | # #???# ! | | + #???# | +----------------------------------------------------+ Best States ------------- Heat Dissipation 59 Coolant Potential 65 Energy Generation 25 Energy Capacity 325 Matter Stores 300 Matter Capacity 300 Sight Range 16 Terrain Scan Density 10 Additional Mass Support 12 Armor Coverage 900 Resistance: TH 15 Weapon Shielding 66 Evasion (%) 63 Recoil Reduction 4 Particle Charging 15 Offensive Hacking 10 Relay Coupler Types 2 Relay Coupler Value 62 Authchip Count 1 Item Schematics ----------------- Cargo Storage Unit | -7/Factory | Hacked Robot Schematics ------------------ None Fabricated ------------ Cargo Storage Unit | x1 | -7/Factory Alien Tech Used ----------------- None Achievements -------------- None Challenges ------------ None Game ------ Seed DynamicModifiedBeacon Manual? 0 Play Time 01:51:12 Cumulative 151.7 hours Start 2025.03.31 @ 12:29:33 End 2025.03.31 @ 14:32:05 Sessions 1 Manual Loads 0 Difficulty Rogue Special Mode None Game No. 164 Rogue 164 Adventurer 0 Explorer 0 Win Type - Total 2 Types 2/0/0/0/0/0/0/0/0 Lore% 56 Gallery% 67 Achievement% 59 Wizard Run 0 Options --------- Layout 0 ASCII 0 Keyboard 1 Movement Numpad Keybinds 0 Fullscreen 2 Font 18/Smallcaps Map View 76x50 Zoom Use 0% Tactical HUD 1 Map Filters NONE Filters NONE Steam 1 RUN: 3dfd0d00-de8a-49cc-8f3e-6fc7590dea6c